fUST/lending_fUST_20240430
["ID","MTS","AMOUNT","RATE_DAILY","PERIOD"]
[324962938,1714476644419,-155.11171458,0.00020912,2]
[324962940,1714476644429,-194.03992112,0.00020912,2]
[324962942,1714476644438,-283.4494848,0.00020912,2]
[324962944,1714476644447,-189.31051559,0.00020912,2]
[324962946,1714476644457,-155.10614473,0.00020912,2]
[324962948,1714476644467,-154.84515485,0.00020912,2]
[324962950,1714476644476,-9322.92256472,0.00021,5]
[324962952,1714476644485,-3285.99886161,0.00021,2]
[324962954,1714476644494,-766.80102444,0.00021783,2]
[324962956,1714476644504,-3000.0,0.00021917,2]
[324962959,1714476644518,-10000.0,0.00021918,2]
[324962960,1714476644527,-613.2773995,0.00021918,2]
[324962963,1714476644537,-155.088,0.00022,20]
[324962965,1714476644547,-366.72502704,0.00022,2]
[324962967,1714476644555,-170.70516231,0.00022,2]
[324962969,1714476644565,-564.0,0.00022,2]
[324962971,1714476644574,-197.21049635,0.00022,2]
[324962973,1714476644584,-564.0,0.00022192,2]
[324962974,1714476644593,-1193.88184592,0.00022238,2]
[324962976,1714476644603,-160.0,0.00022441,2]
[324962978,1714476644612,-162.97184,0.00022466,2]
[324962980,1714476644621,-252.307744,0.00022466,2]
[324962982,1714476644630,-185.889715,0.00022466,2]
[324962984,1714476644640,-165.414129,0.00022466,2]
[324962986,1714476644649,-297.833565,0.00022466,2]
[324962988,1714476644658,-96927.19887093,0.000225,2]
[324962991,1714476644670,-1997.68963592,0.000225,2]
[324962993,1714476644682,-24181.97692386,0.000225,2]
[324962995,1714476644691,-154.79876161,0.000225,2]
[324962997,1714476644702,-2000.0,0.000225,2]
[324962999,1714476644711,-3602.88360912,0.000225,2]
[324963001,1714476644723,-1245.887364,0.000225,2]
[324963003,1714476644732,-1245.887364,0.000225,2]
[324963005,1714476644742,-214.82601298,0.000225,2]
[324963007,1714476644751,-3014.97352788,0.000225,2]
[324963009,1714476644762,-2865.0,0.000225,2]
[324963237,1714476648743,-303.78692904,0.00019999,2]
[324963239,1714476648752,-379.24165137,0.00019999,2]
[324963241,1714476648762,-237.07141959,0.00020912,2]
[324963563,1714477391702,379.24165137,9.999e-05,2]
[324963604,1714477832111,-1891.97802376,0.00018484,2]
[324963605,1714477832120,-379.24165137,0.00018485,2]
[324963606,1714477832130,-3051.21388193,0.00018485,2]
[324963607,1714477832139,-3000.0,0.00018504,2]
[324963608,1714477832149,-166.250462,0.00018507,2]
[324963609,1714477832158,-592.81072539,0.000189,2]
[324963610,1714477832168,-6955.88069151,0.00019262,2]
[324963611,1714477832179,-687.99869082,0.00019898,2]
[324963612,1714477832188,-506.24550521,0.000199,2]
[324963613,1714477832197,-320.65,0.0001999,3]
[324963614,1714477832206,-480.97,0.0001999,3]
[324963615,1714477832216,-240.49,0.0001999,3]
[324963616,1714477832225,-721.49,0.0001999,3]
[324963618,1714477832234,-155.08097712,0.00019998,2]
[324963620,1714477832243,-185.81629862,0.00019998,2]
[324963621,1714477832252,-178.10195469,0.00019998,2]
[324963623,1714477832261,-2588.41116025,0.00019998,2]
[324963624,1714477832271,-309.61300308,0.00019998,2]
[324963626,1714477832280,-193.65224844,0.00019998,2]
[324963627,1714477832289,-242.41998623,0.00019998,2]
[324963628,1714477832298,-1676.30195278,0.00019998,2]
[324963629,1714477832308,-189.3964787,0.00019998,2]
[324963630,1714477832317,-354.96876268,0.00019999,2]
[324963631,1714477832326,-329.99389325,0.0002,2]
[324963632,1714477832336,-10481.54893926,0.0002,2]
[324963633,1714477832345,-6449.30929846,0.0002,2]
[324963666,1714477838274,-6032.9980118,0.0002,2]
[324963673,1714477838334,-1434.92384777,0.0002,2]
[324963675,1714477838345,-295.38647082,0.0002,2]
[324963902,1714477842943,-474.93714599,0.0002,2]
[324963905,1714477842956,-344.443932,0.0002,2]
[324963935,1714477843278,-6065.42567615,0.0002,2]
[324963937,1714477843290,-1224.76,0.0002,2]
[324964302,1714477848609,-730.61014924,0.00019999,2]
[324964303,1714477848619,-185.73985076,0.0002,2]
[324964348,1714477883616,710.77308456,9.999e-05,2]
[324965112,1714478459026,379.24165137,9.999e-05,2]
[324965116,1714478993060,379.24165137,9.999e-05,2]
[324965150,1714479032370,-3051.21388193,0.00017432,2]
[324965151,1714479032382,-3000.0,0.00017433,2]
[324965152,1714479032391,-166.458564,0.00017814,2]
[324965153,1714479032401,-154.97593234,0.00017834,2]
[324965154,1714479032410,-276.96911954,0.00017834,2]
[324965155,1714479032419,-379.24165137,0.00017834,2]
[324965156,1714479032429,-302.80653186,0.00017835,2]
[324965157,1714479032438,-24900.0,0.00017836,2]
[324965158,1714479032447,-154.86062544,0.00018788,2]
[324965159,1714479032457,-237.64873836,0.00018788,2]
[324965160,1714479032467,-265.62372421,0.00018788,2]
[324965161,1714479032476,-155.05504485,0.00018789,2]
[324965162,1714479032486,-957.16613909,0.000189,2]
[324965163,1714479032495,-234.92975206,0.000191,2]
[324965164,1714479032504,-234.92975204,0.000191,2]
[324965165,1714479032513,-234.92975204,0.000191,2]
[324965166,1714479032523,-404.99640416,0.000199,2]
[324965167,1714479032532,-274.98102988,0.000199,2]
[324965168,1714479032543,-347.37,0.0001999,3]
[324965169,1714479032554,-173.68,0.0001999,3]
[324965170,1714479032564,-521.07,0.0001999,3]
[324965171,1714479032574,-648.24701942,0.00019998,2]
[324965172,1714479032584,-180.66138684,0.00019999,2]
[324965173,1714479032594,-422.99435536,0.00019999,2]
[324965174,1714479032603,-8060.71766157,0.0002,2]
[324965180,1714479038435,-994.0359,0.0002,2]
[324965182,1714479038446,-5112.43235119,0.0002,2]
[324965183,1714479038502,-42175.92489999,0.0002,2]
[324965192,1714479040683,-600.0,0.0002,2]
[324965193,1714479040745,-548.9649535,0.0002,2]
[324965194,1714479040755,-451.028417,0.0002,2]
[324965212,1714479043494,-6312.79431555,0.0002,2]
[324965224,1714479046371,-379.24165137,0.00019999,2]
[324965225,1714479046381,-517.15834864,0.0002,2]
[324966271,1714479693699,379.24165137,9.999e-05,2]
[324966288,1714479972211,4466.21122648,9.999e-05,2]
[324966289,1714479977001,2084.30400312,9.999e-05,2]
[324966290,1714479977157,1621.94326618,9.999e-05,2]
[324966292,1714479983748,2634.83520626,9.999e-05,2]
[324966293,1714479999434,718.63486199,9.999e-05,2]
[324966296,1714480005679,7519.99973538,9.999e-05,2]
[324966297,1714480020439,460.20366438,9.999e-05,2]
[324966327,1714480058154,4377.9011269,9.999e-05,2]
[324966329,1714480059682,5947.79844157,9.999e-05,2]
[324966332,1714480091685,9116.8108737,9.999e-05,2]
[324966338,1714480132158,716.36134201,9.999e-05,2]
[324966389,1714480233381,-471.0906985,0.00016767,2]
[324966453,1714480238735,-330.95424516,0.00016766,2]
[324966456,1714480238747,-1653.70990351,0.00016766,2]
[324966458,1714480238756,-2580.12318343,0.00016767,2]
[324966460,1714480238765,-228.44373895,0.00016767,2]
[324966462,1714480238775,-379.24165137,0.00016767,2]
[324966464,1714480238787,-154.93980959,0.00016767,2]
[324966465,1714480238796,-155.00067319,0.00016767,2]
[324966468,1714480238805,-156.40991382,0.00016767,2]
[324966470,1714480238814,-6892.33112614,0.00016769,2]
[324966472,1714480238826,-18007.66887386,0.00016769,2]
[324966474,1714480238835,-601.99885452,0.00016802,2]
[324966476,1714480238845,-3000.0,0.0001691,2]
[324966478,1714480238854,-166.458564,0.00017078,2]
[324966480,1714480238863,-163.15085685,0.00018072,2]
[324966482,1714480238872,-157.61317396,0.0001808,2]
[324966483,1714480238882,-5808.88501187,0.00018081,2]
[324966485,1714480238891,-155.13000543,0.00018081,2]
[324966488,1714480238901,-895.06792294,0.00018081,2]
[324966489,1714480238911,-218.83347451,0.00018081,2]
[324966492,1714480238920,-1091.47655963,0.00018081,2]
[324966494,1714480238930,-158.88317173,0.00018081,2]
[324966495,1714480238940,-212.26666393,0.00018081,2]
[324966498,1714480238950,-550.01932666,0.00018081,2]
[324966500,1714480238959,-164.0768642,0.00018081,2]
[324966502,1714480238969,-472.68114332,0.00018081,2]
[324966504,1714480238978,-717.86575868,0.00018081,2]
[324966506,1714480238987,-1620.88160548,0.00018081,2]
[324966508,1714480238996,-155.07864978,0.00018081,2]
[324966510,1714480239006,-574.60548096,0.00018081,2]
[324966512,1714480239015,-308.22783181,0.00018081,2]
[324966514,1714480239026,-526.83448136,0.00018082,2]
[324966516,1714480239038,-206.84821855,0.00018082,2]
[324966518,1714480239048,-1052.95175245,0.000189,2]
[324966520,1714480239057,-927.87368973,0.00018998,2]
[324966522,1714480239067,-155.52032063,0.00019221,2]
[324966524,1714480239076,-603.84859883,0.00019221,2]
[324966526,1714480239086,-189.3964787,0.00019221,2]
[324966528,1714480239096,-163.15085685,0.000199,2]
[324966530,1714480239106,-158.20580885,0.000199,2]
[324966532,1714480239118,-1476.07516222,0.000199,2]
[324966534,1714480239128,-323.99712332,0.000199,2]
[324966536,1714480239138,-173.68,0.0001999,3]
[324966538,1714480239147,-521.06,0.0001999,3]
[324966540,1714480239156,-708.49729077,0.0002,2]
[324966543,1714480239172,-1982.34144,0.0002,2]
[324966701,1714480243244,-999.9933705,0.0002,2]
[324966703,1714480243255,-256.14,0.0002,2]
[324966705,1714480243267,-612.6056,0.0002,2]
[324966821,1714480243776,-24101.31900771,0.0002,2]
[324966823,1714480243791,-12222.8,0.0002,2]
[324966825,1714480243802,-3013.69999996,0.0002,2]
[324967221,1714480248518,-462.36241004,0.0002,2]
[324967242,1714480248721,-15785.45839361,0.0002,2]
[324967244,1714480248730,-154.81422293,0.0002,2]
[324967246,1714480248740,-241.71320654,0.0002,2]
[324967248,1714480248751,-5460.88699735,0.0002,2]
[324967250,1714480248762,-329.99389325,0.0002,2]
[324967252,1714480248772,-17169.15510657,0.0002,2]
[324967253,1714480248782,-80000.0,0.0002,2]
[324967254,1714480248794,-151.48563567,0.0002,2]
[324967255,1714480248803,-39999.999999,0.0002,2]
[324967256,1714480248812,-200.0,0.0002,2]
[324967257,1714480248822,-601.99885445,0.00020029,2]
[324967258,1714480248831,-160.0,0.00020278,2]
[324967259,1714480248841,-155.642877,0.00020394,2]
[324967260,1714480248850,-1096.181492,0.000205,2]
[324967261,1714480248859,-323.9971233,0.00020525,2]
[324967262,1714480248868,-320.0,0.00020826,2]
[324967263,1714480248878,-3000.0,0.00020908,2]
[324967264,1714480248887,-3000.0,0.00020908,2]
[324967265,1714480248897,-3000.0,0.00020908,2]
[324967266,1714480248906,-3000.0,0.00020908,2]
[324967267,1714480248915,-3000.0,0.00020908,2]
[324967268,1714480248925,-222.80023042,0.00020909,2]
[324967270,1714480248935,-300.07781609,0.00020911,2]
[324967272,1714480248944,-10598.56422738,0.00020912,2]
[324967273,1714480248954,-214.82601298,0.00020912,2]
[324967275,1714480248963,-3002.4030076,0.00020912,2]
[324967277,1714480248972,-1000.0,0.00021,2]
[324967279,1714480248981,-323.9971233,0.0002115,2]
[324967281,1714480248991,-347.36,0.0002136,3]
[324967283,1714480249001,-480.0,0.00021374,2]
[324967285,1714480249011,-1000.0,0.000215,2]
[324967287,1714480249020,-323.9971233,0.00021775,2]
[324967289,1714480249030,-44444.0,0.00021818,3]
[324967291,1714480249041,-1547.90345751,0.00021917,2]
[324967293,1714480249050,-2684.07607813,0.00021917,2]
[324967295,1714480249060,-10000.0,0.00021918,2]
[324967297,1714480249070,-182.388894,0.00021918,2]
[324967299,1714480249084,-182.388894,0.00021918,2]
[324967301,1714480249092,-182.388894,0.00021918,2]
[324967303,1714480249101,-182.388894,0.00021918,2]
[324967305,1714480249111,-182.388894,0.00021918,2]
[324967307,1714480249120,-182.388894,0.00021918,2]
[324967308,1714480249129,-182.388894,0.00021918,2]
[324967311,1714480249139,-182.388894,0.00021918,2]
[324967312,1714480249148,-151.0,0.00021918,2]
[324967314,1714480249157,-151.484252,0.00021918,2]
[324967316,1714480249166,-154.295428,0.00021918,2]
[324967319,1714480249176,-273.937009,0.00021918,2]
[324967321,1714480249185,-273.937009,0.00021918,2]
[324967323,1714480249194,-273.937009,0.00021918,2]
[324967325,1714480249203,-273.937009,0.00021918,2]
[324967327,1714480249212,-273.937009,0.00021918,2]
[324967329,1714480249221,-151.0,0.00021918,2]
[324967332,1714480249231,-273.937009,0.00021918,2]
[324967335,1714480249239,-151.0,0.00021918,2]
[324967338,1714480249248,-273.937009,0.00021918,2]
[324967341,1714480249257,-273.937009,0.00021918,2]
[324967345,1714480249266,-151.0,0.00021918,2]
[324967348,1714480249275,-151.841853,0.00021918,2]
[324967351,1714480249284,-151.068906,0.00021918,2]
[324967354,1714480249298,-151.0,0.00021918,2]
[324967358,1714480249308,-151.0,0.00021918,2]
[324967361,1714480249318,-151.0,0.00021918,2]
[324967364,1714480249327,-151.0,0.00021918,2]
[324967367,1714480249336,-151.0,0.00021918,2]
[324967370,1714480249345,-753.322551,0.00021918,2]
[324967372,1714480249355,-151.0,0.00021918,2]
[324967374,1714480249364,-151.0,0.00021918,2]
[324967376,1714480249373,-753.322551,0.00021918,2]
[324967378,1714480249382,-151.0,0.00021918,2]
[324967380,1714480249391,-151.0,0.00021918,2]
[324967382,1714480249400,-151.0,0.00021918,2]
[324967384,1714480249409,-753.322551,0.00021918,2]
[324967386,1714480249418,-753.322551,0.00021918,2]
[324967388,1714480249427,-753.322551,0.00021918,2]
[324967390,1714480249436,-151.0,0.00021918,2]
[324967392,1714480249445,-157.179256,0.00021918,2]
[324967394,1714480249454,-151.0,0.00021918,2]
[324967396,1714480249463,-151.0,0.00021918,2]
[324967398,1714480249477,-151.0,0.00021918,2]
[324967400,1714480249486,-151.0,0.00021918,2]
[324967402,1714480249496,-753.322551,0.00021918,2]
[324967404,1714480249505,-753.322551,0.00021918,2]
[324967406,1714480249515,-753.322551,0.00021918,2]
[324967408,1714480249524,-753.322551,0.00021918,2]
[324967410,1714480249533,-753.322551,0.00021918,2]
[324967412,1714480249546,-151.0,0.00021918,2]
[324967414,1714480249555,-151.213274,0.00021918,2]
[324967416,1714480249564,-151.0,0.00021918,2]
[324967418,1714480249573,-151.293733,0.00021918,2]
[324967420,1714480249582,-481.500133,0.00021918,2]
[324967422,1714480249591,-481.500133,0.00021918,2]
[324967424,1714480249600,-481.500133,0.00021918,2]
[324967426,1714480249610,-481.500133,0.00021918,2]
[324967428,1714480249619,-481.500133,0.00021918,2]
[324967431,1714480249629,-481.500133,0.00021918,2]
[324967432,1714480249638,-481.500133,0.00021918,2]
[324967434,1714480249648,-481.500133,0.00021918,2]
[324967437,1714480249660,-481.500133,0.00021918,2]
[324967438,1714480249670,-481.500133,0.00021918,2]
[324967440,1714480249679,-481.500133,0.00021918,2]
[324967442,1714480249690,-481.500133,0.00021918,2]
[324967444,1714480249698,-302.480195,0.00021918,2]
[324967446,1714480249707,-302.480195,0.00021918,2]
[324967448,1714480249716,-302.480195,0.00021918,2]
[324967450,1714480249727,-302.480195,0.00021918,2]
[324967452,1714480249737,-302.480195,0.00021918,2]
[324967454,1714480249747,-302.480195,0.00021918,2]
[324967456,1714480249756,-302.480195,0.00021918,2]
[324967458,1714480249765,-302.480195,0.00021918,2]
[324967461,1714480249774,-302.480195,0.00021918,2]
[324967463,1714480249783,-302.480195,0.00021918,2]
[324967464,1714480249795,-302.480195,0.00021918,2]
[324967466,1714480249803,-302.480195,0.00021918,2]
[324967468,1714480249813,-151.0,0.00021918,2]
[324967470,1714480249823,-151.0,0.00021918,2]
[324967472,1714480249832,-151.423506,0.00021918,2]
[324967474,1714480249841,-151.0,0.00021918,2]
[324967476,1714480249850,-151.0,0.00021918,2]
[324967478,1714480249859,-151.001391,0.00021918,2]
[324967480,1714480249868,-151.0,0.00021918,2]
[324967482,1714480249877,-151.0,0.00021918,2]
[324967484,1714480249888,-151.0,0.00021918,2]
[324967486,1714480249897,-151.0,0.00021918,2]
[324967489,1714480249907,-151.0,0.00021918,2]
[324967490,1714480249916,-151.0,0.00021918,2]
[324967492,1714480249925,-151.0,0.00021918,2]
[324967494,1714480249934,-241.674438,0.00021918,2]
[324967496,1714480249943,-241.674438,0.00021918,2]
[324967498,1714480249953,-241.674438,0.00021918,2]
[324967500,1714480249962,-241.674438,0.00021918,2]
[324967502,1714480249972,-241.674438,0.00021918,2]
[324967504,1714480249981,-241.674438,0.00021918,2]
[324967506,1714480249990,-241.674438,0.00021918,2]
[324967508,1714480249999,-241.674438,0.00021918,2]
[324967510,1714480250009,-241.674438,0.00021918,2]
[324967512,1714480250019,-241.674438,0.00021918,2]
[324967515,1714480250028,-241.674438,0.00021918,2]
[324967516,1714480250040,-241.674438,0.00021918,2]
[324967518,1714480250050,-151.0,0.00021918,2]
[324967520,1714480250059,-151.0,0.00021918,2]
[324967522,1714480250068,-151.0,0.00021918,2]
[324967524,1714480250078,-151.0,0.00021918,2]
[324967526,1714480250088,-151.0,0.00021918,2]
[324967528,1714480250097,-151.0,0.00021918,2]
[324967530,1714480250106,-151.0,0.00021918,2]
[324967532,1714480250115,-151.0,0.00021918,2]
[324967534,1714480250125,-151.0,0.00021918,2]
[324967536,1714480250134,-151.0,0.00021918,2]
[324967538,1714480250144,-151.0,0.00021918,2]
[324967540,1714480250154,-151.0,0.00021918,2]
[324967542,1714480250164,-151.0,0.00021918,2]
[324967544,1714480250173,-151.0,0.00021918,2]
[324967547,1714480250183,-151.0,0.00021918,2]
[324967548,1714480250192,-227.578448,0.00021918,2]
[324967551,1714480250202,-1121.298628,0.00021918,2]
[324967553,1714480250212,-1121.298628,0.00021918,2]
[324967554,1714480250222,-1121.298628,0.00021918,2]
[324967557,1714480250232,-1121.298628,0.00021918,2]
[324967558,1714480250240,-1121.298628,0.00021918,2]
[324967560,1714480250250,-1121.298628,0.00021918,2]
[324967562,1714480250259,-1121.298628,0.00021918,2]
[324967564,1714480250268,-1121.298628,0.00021918,2]
[324967566,1714480250278,-1121.298628,0.00021918,2]
[324967568,1714480250288,-1121.298628,0.00021918,2]
[324967570,1714480250302,-1121.298628,0.00021918,2]
[324967572,1714480250311,-1121.298628,0.00021918,2]
[324967575,1714480250321,-1121.298628,0.00021918,2]
[324967577,1714480250330,-1121.298628,0.00021918,2]
[324967579,1714480250339,-1121.298628,0.00021918,2]
[324967581,1714480250348,-1121.298628,0.00021918,2]
[324967583,1714480250357,-282.553716,0.00021918,2]
[324967585,1714480250367,-282.553716,0.00021918,2]
[324967587,1714480250375,-282.553716,0.00021918,2]
[324967588,1714480250384,-282.553716,0.00021918,2]
[324967590,1714480250393,-282.553716,0.00021918,2]
[324967592,1714480250402,-282.553716,0.00021918,2]
[324967595,1714480250411,-282.553716,0.00021918,2]
[324967596,1714480250421,-282.553716,0.00021918,2]
[324967599,1714480250430,-282.553716,0.00021918,2]
[324967600,1714480250439,-282.553716,0.00021918,2]
[324967602,1714480250448,-282.553716,0.00021918,2]
[324967604,1714480250458,-282.553716,0.00021918,2]
[324967607,1714480250467,-172.249337,0.00021918,2]
[324967609,1714480250476,-172.249337,0.00021918,2]
[324967611,1714480250486,-172.249337,0.00021918,2]
[324967613,1714480250495,-172.249337,0.00021918,2]
[324967615,1714480250504,-172.249337,0.00021918,2]
[324967617,1714480250513,-172.249337,0.00021918,2]
[324967619,1714480250522,-172.249337,0.00021918,2]
[324967621,1714480250532,-172.249337,0.00021918,2]
[324967623,1714480250543,-172.249337,0.00021918,2]
[324967624,1714480250553,-172.249337,0.00021918,2]
[324967627,1714480250562,-172.249337,0.00021918,2]
[324967629,1714480250571,-172.249337,0.00021918,2]
[324967631,1714480250581,-172.249337,0.00021918,2]
[324967633,1714480250590,-172.249337,0.00021918,2]
[324967635,1714480250599,-172.249337,0.00021918,2]
[324967637,1714480250609,-172.249337,0.00021918,2]
[324967639,1714480250618,-160.103392,0.00021918,2]
[324967640,1714480250627,-151.0,0.00021918,2]
[324967643,1714480250638,-151.0,0.00021918,2]
[324967645,1714480250650,-151.0,0.00021918,2]
[324967646,1714480250663,-151.0,0.00021918,2]
[324967648,1714480250674,-151.0,0.00021918,2]
[324967650,1714480250687,-151.0,0.00021918,2]
[324967653,1714480250697,-151.0,0.00021918,2]
[324967655,1714480250707,-1942.981426,0.00021918,2]
[324967657,1714480250717,-151.0,0.00021918,2]
[324967659,1714480250728,-1942.981426,0.00021918,2]
[324967661,1714480250739,-1942.981426,0.00021918,2]
[324967663,1714480250750,-1942.981426,0.00021918,2]
[324967665,1714480250760,-1942.981426,0.00021918,2]
[324967667,1714480250770,-1942.981426,0.00021918,2]
[324967669,1714480250779,-1942.981426,0.00021918,2]
[324967670,1714480250789,-1942.981426,0.00021918,2]
[324967672,1714480250801,-1942.981426,0.00021918,2]
[324967674,1714480250810,-1942.981426,0.00021918,2]
[324967675,1714480250820,-1942.981426,0.00021918,2]
[324967676,1714480250830,-1942.981426,0.00021918,2]
[324967677,1714480250839,-1942.981426,0.00021918,2]
[324967678,1714480250849,-1942.981426,0.00021918,2]
[324967679,1714480250858,-1942.981426,0.00021918,2]
[324967680,1714480250868,-1942.981426,0.00021918,2]
[324967681,1714480250877,-151.0,0.00021918,2]
[324967682,1714480250886,-151.0,0.00021918,2]
[324967683,1714480250895,-151.0,0.00021918,2]
[324967684,1714480250904,-151.0,0.00021918,2]
[324967685,1714480250914,-151.0,0.00021918,2]
[324967686,1714480250924,-151.0,0.00021918,2]
[324967687,1714480250934,-151.0,0.00021918,2]
[324967688,1714480250943,-151.0,0.00021918,2]
[324967689,1714480250953,-151.0,0.00021918,2]
[324967690,1714480250963,-151.0,0.00021918,2]
[324967691,1714480250972,-151.0,0.00021918,2]
[324967692,1714480251124,-151.0,0.00021918,2]
[324967693,1714480251133,-151.0,0.00021918,2]
[324967694,1714480251143,-151.0,0.00021918,2]
[324967695,1714480251153,-151.0,0.00021918,2]
[324967696,1714480251164,-151.0,0.00021918,2]
[324967697,1714480251173,-151.0,0.00021918,2]
[324967698,1714480251182,-151.0,0.00021918,2]
[324967699,1714480251192,-151.0,0.00021918,2]
[324967700,1714480251201,-151.0,0.00021918,2]
[324967701,1714480251211,-151.0,0.00021918,2]
[324967702,1714480251220,-151.0,0.00021918,2]
[324967703,1714480251230,-162.469575,0.00021918,2]
[324967704,1714480251239,-172.877711,0.00021918,2]
[324967705,1714480251248,-172.877711,0.00021918,2]
[324967706,1714480251258,-172.877711,0.00021918,2]
[324967707,1714480251267,-172.877711,0.00021918,2]
[324967708,1714480251277,-172.877711,0.00021918,2]
[324967709,1714480251286,-172.877711,0.00021918,2]
[324967710,1714480251298,-172.877711,0.00021918,2]
[324967711,1714480251307,-172.877711,0.00021918,2]
[324967712,1714480251316,-172.877711,0.00021918,2]
[324967713,1714480251326,-172.877711,0.00021918,2]
[324967714,1714480251335,-172.877711,0.00021918,2]
[324967715,1714480251345,-172.877711,0.00021918,2]
[324967716,1714480251355,-172.877711,0.00021918,2]
[324967717,1714480251364,-172.877711,0.00021918,2]
[324967718,1714480251373,-172.877711,0.00021918,2]
[324967719,1714480251383,-172.877711,0.00021918,2]
[324967720,1714480251393,-157.814962,0.00021918,2]
[324967721,1714480251403,-157.814962,0.00021918,2]
[324967722,1714480251412,-157.814962,0.00021918,2]
[324967723,1714480251422,-157.814962,0.00021918,2]
[324967724,1714480251431,-157.814962,0.00021918,2]
[324967725,1714480251441,-157.814962,0.00021918,2]
[324967726,1714480251451,-157.814962,0.00021918,2]
[324967727,1714480251460,-157.814962,0.00021918,2]
[324967728,1714480251471,-157.814962,0.00021918,2]
[324967729,1714480251481,-157.814962,0.00021918,2]
[324967730,1714480251490,-157.814962,0.00021918,2]
[324967731,1714480251500,-157.814962,0.00021918,2]
[324967732,1714480251510,-157.814962,0.00021918,2]
[324967733,1714480251520,-157.814962,0.00021918,2]
[324967734,1714480251531,-157.814962,0.00021918,2]
[324967735,1714480251541,-157.814962,0.00021918,2]
[324967736,1714480251551,-581.433656,0.00021918,2]
[324967737,1714480251560,-581.433656,0.00021918,2]
[324967738,1714480251569,-581.433656,0.00021918,2]
[324967739,1714480251579,-581.433656,0.00021918,2]
[324967740,1714480251589,-151.0,0.00021918,2]
[324967741,1714480251599,-581.433656,0.00021918,2]
[324967742,1714480251609,-151.0,0.00021918,2]
[324967743,1714480251619,-581.433656,0.00021918,2]
[324967744,1714480251628,-151.0,0.00021918,2]
[324967745,1714480251639,-581.433656,0.00021918,2]
[324967746,1714480251651,-158.485336,0.00021918,2]
[324967747,1714480251664,-581.433656,0.00021918,2]
[324967748,1714480251674,-581.433656,0.00021918,2]
[324967749,1714480251684,-581.433656,0.00021918,2]
[324967750,1714480251695,-581.433656,0.00021918,2]
[324967751,1714480251704,-581.433656,0.00021918,2]
[324967752,1714480251714,-581.433656,0.00021918,2]
[324967753,1714480251723,-581.433656,0.00021918,2]
[324967754,1714480251734,-581.433656,0.00021918,2]
[324967755,1714480251743,-581.433656,0.00021918,2]
[324967756,1714480251753,-598.403269,0.00021918,2]
[324967757,1714480251762,-598.403269,0.00021918,2]
[324967758,1714480251772,-598.403269,0.00021918,2]
[324967759,1714480251782,-598.403269,0.00021918,2]
[324967760,1714480251793,-151.0,0.00021918,2]
[324967761,1714480251802,-598.403269,0.00021918,2]
[324967762,1714480251811,-152.107121,0.00021918,2]
[324967763,1714480251820,-598.403269,0.00021918,2]
[324967764,1714480251830,-598.403269,0.00021918,2]
[324967765,1714480251839,-598.403269,0.00021918,2]
[324967766,1714480251848,-598.403269,0.00021918,2]
[324967767,1714480251857,-598.403269,0.00021918,2]
[324967768,1714480251866,-598.403269,0.00021918,2]
[324967769,1714480251876,-598.403269,0.00021918,2]
[324967770,1714480251885,-598.403269,0.00021918,2]
[324967771,1714480251895,-598.403269,0.00021918,2]
[324967772,1714480251904,-598.403269,0.00021918,2]
[324967773,1714480251913,-598.403269,0.00021918,2]
[324967774,1714480251922,-598.403269,0.00021918,2]
[324967775,1714480251933,-151.0,0.00021918,2]
[324967776,1714480251942,-598.403269,0.00021918,2]
[324967777,1714480251951,-151.0,0.00021918,2]
[324967778,1714480251961,-151.0,0.00021918,2]
[324967779,1714480251970,-3968.548487,0.00021918,2]